bitfinex/quotes_BTCUSD_20241024
["timestamp","ask_amount","ask_price","bid_price","bid_amount"]
[1729804836645,0.00340597,68665.0,68664.0,0.150636]
[1729804836852,0.012,68666.0,68665.0,0.233334]
[1729804837077,0.012,68666.0,68665.0,0.38383781]
[1729804838736,0.012,68666.0,68665.0,0.39383781]
[1729804839086,0.012827,68666.0,68665.0,0.39383781]
[1729804839385,0.00017651,68667.0,68666.0,0.165632]
[1729804839591,0.00017651,68667.0,68666.0,0.46663962]
[1729804842693,0.00017651,68667.0,68666.0,0.47509784]
[1729804847540,0.0180858,68682.0,68672.0,0.30963665]
[1729804847728,0.0180858,68682.0,68672.0,0.46014046]
[1729804851004,0.0180858,68682.0,68672.0,0.54284046]
[1729804851209,0.0180858,68682.0,68672.0,0.61148942]
[1729804851429,0.00251984,68673.0,68672.0,0.61148942]
[1729804854326,0.00251984,68673.0,68672.0,0.15550381]
[1729804855409,0.00251984,68673.0,68672.0,0.15050381]
[1729804855626,0.00251984,68673.0,68672.0,0.30112281]
[1729804855835,0.00251984,68673.0,68672.0,0.52131114]
[1729804856047,0.00251984,68673.0,68672.0,0.30112281]
[1729804856255,0.00251984,68673.0,68672.0,0.38998459]
[1729804865844,0.00170225,68678.0,68677.0,0.150609]
[1729804866048,0.00170225,68678.0,68677.0,0.30111281]
[1729804867520,0.00170225,68678.0,68677.0,0.15550381]
[1729804867741,0.00170225,68678.0,68677.0,0.39835607]
[1729804869362,0.2048858,68682.0,68678.0,0.005]
[1729804869576,0.2048858,68682.0,68678.0,0.15550381]
[1729804869997,0.0180858,68682.0,68678.0,0.30111081]
[1729804876859,0.0180858,68682.0,68678.0,0.15550381]
[1729804877090,0.0180858,68682.0,68678.0,0.30111081]
[1729804877491,0.10583828,68683.0,68678.0,0.30111081]
[1729804877492,0.10474908,68683.0,68678.0,0.37811852]
[1729804877745,0.10474908,68683.0,68680.0,0.005]
[1729804877910,0.10474908,68683.0,68681.0,0.15050381]
[1729804879134,0.00371274,68683.0,68681.0,0.15050381]
[1729804879342,0.10103634,68682.0,68681.0,0.15050381]
[1729804881914,0.00371274,68683.0,68681.0,0.15050381]
[1729804882116,0.10103634,68682.0,68681.0,0.15050381]
[1729804882684,0.10103634,68682.0,68675.0,0.005]
[1729804882910,0.145604,68680.0,68676.0,0.15050381]
[1729804883309,0.10103634,68677.0,68676.0,0.15050381]
[1729804883907,0.145602,68681.0,68676.0,0.15050381]
[1729804884083,0.10103634,68677.0,68676.0,0.15050381]
[1729804884821,0.10103634,68677.0,68676.0,0.15550381]
[1729804885260,0.10103634,68677.0,68676.0,0.15050381]
[1729804886970,0.10103634,68677.0,68676.0,0.15550381]
[1729804887410,0.1080516,68677.0,68676.0,0.15050381]
[1729804888008,0.1080516,68677.0,68676.0,0.15550381]
[1729804889310,0.00701526,68677.0,68676.0,0.15550381]
[1729804889535,0.1080516,68677.0,68676.0,0.15550381]
[1729804889965,0.04820883,68683.0,68676.0,0.15550381]
[1729804889966,0.00453874,68683.0,68676.0,0.15550381]
[1729804890225,0.145598,68682.0,68677.0,0.03388845]
[1729804890444,0.00453874,68683.0,68677.0,0.18439226]
[1729804890625,0.075,68685.0,68677.0,0.18439226]
[1729804890879,0.10103634,68678.0,68677.0,0.18439226]
[1729804891553,0.075,68685.0,68677.0,0.18439226]
[1729804891554,0.291192,68683.0,68677.0,0.18439226]
[1729804891767,0.10103634,68678.0,68677.0,0.15050381]
[1729804893016,0.39222434,68684.0,68677.0,0.15050381]
[1729804893017,0.145595,68684.0,68677.0,0.15050381]
[1729804893217,0.10103634,68678.0,68677.0,0.23192372]
[1729804893537,0.10103634,68684.0,68677.0,0.23192372]
[1729804893741,0.04663434,68684.0,68677.0,0.15050381]
[1729804893976,0.19222934,68684.0,68677.0,0.15050381]
[1729804894393,0.10103634,68682.0,68677.0,0.15050381]
[1729804894845,0.40803868,68686.0,68677.0,0.15050381]
[1729804895048,0.10103634,68684.0,68677.0,0.15050381]
[1729804895275,0.04662634,68686.0,68677.0,0.20279962]
[1729804895479,0.10103634,68685.0,68677.0,0.20279962]
[1729804895932,0.10103634,68686.0,68677.0,0.20279962]
[1729804896303,0.24662734,68686.0,68677.0,0.20279962]
[1729804896504,0.3654537,68689.0,68677.0,0.20279962]
[1729804896733,0.24662634,68686.0,68678.0,0.0573602]
[1729804897132,0.04662634,68686.0,68678.0,0.0573602]
[1729804897573,0.3654537,68689.0,68678.0,0.0573602]
[1729804897574,0.04366794,68689.0,68678.0,0.0573602]
[1729804897791,0.04662534,68687.0,68678.0,0.0573602]
[1729804898000,0.10103634,68686.0,68679.0,0.0437179]
[1729804898200,0.145592,68685.0,68679.0,0.0437179]
[1729804898442,0.10103634,68686.0,68679.0,0.0437179]
[1729804899102,0.145586,68688.0,68679.0,0.0437179]
[1729804899312,0.10103634,68686.0,68679.0,0.0437179]
[1729804899739,0.04366976,68689.0,68681.0,0.22018833]
[1729804899956,0.43541734,68690.0,68680.0,0.19285718]
[1729804899957,0.1385061,68690.0,68680.0,0.19285718]
[1729804900176,0.10103634,68688.0,68680.0,0.19285718]
[1729804900444,0.04367389,68689.0,68681.0,0.25469985]
[1729804900651,0.14471023,68689.0,68681.0,0.25469985]
[1729804900866,0.01364455,68683.0,68681.0,0.25469985]
[1729804901322,0.06632965,68693.0,68681.0,0.03451152]
[1729804901323,0.10103634,68688.0,68681.0,0.03451152]
[1729804901532,0.10103634,68688.0,68680.0,0.19285718]
[1729804902230,0.10103634,68688.0,68685.0,0.22018833]
[1729804902433,0.1,68696.0,68686.0,0.15050381]
[1729804902874,0.10103634,68694.0,68686.0,0.15050381]
[1729804904372,0.02183108,68693.0,68686.0,0.15050381]
[1729804904791,0.10103634,68694.0,68686.0,0.15050381]
[1729804905871,0.10103634,68694.0,68688.0,0.22018833]
[1729804906101,0.10103634,68694.0,68689.0,0.15050381]
[1729804906713,0.1,68696.0,68689.0,0.15050381]
[1729804907195,0.1,68696.0,68690.0,0.0787]
[1729804907415,0.00218365,68693.0,68691.0,0.37069214]
[1729804907656,0.01310909,68693.0,68692.0,0.26036162]
[1729804907859,0.01310909,68693.0,68692.0,0.41086543]
[1729804908062,0.01310909,68693.0,68692.0,0.55644243]
[1729804908267,0.01310909,68693.0,68692.0,0.32940381]
[1729804908484,0.01310909,68693.0,68692.0,0.39711715]
[1729804908485,0.01092544,68693.0,68692.0,0.39711715]
[1729804908706,5.864e-05,68697.0,68685.0,0.0787]
[1729804908916,0.02305864,68697.0,68688.0,0.22018833]
[1729804909133,0.145571,68695.0,68689.0,0.02988883]
[1729804909363,0.14775287,68696.0,68689.0,0.02988883]
[1729804909588,0.14562564,68697.0,68690.0,0.15050381]
[1729804909794,0.00218353,68696.0,68690.0,0.15050381]
[1729804910847,0.291142,68695.0,68689.0,0.02988883]
[1729804911065,0.145571,68695.0,68690.0,0.02196252]
[1729804911290,0.04364085,68694.0,68690.0,0.02196252]
[1729804911512,0.18921185,68695.0,68690.0,0.02196252]
[1729804911942,0.18921185,68695.0,68689.0,0.25154015]
[1729804912355,0.01092514,68694.0,68689.0,0.25154015]
[1729804913001,0.05456599,68694.0,68689.0,0.25154015]
[1729804913237,0.04364085,68694.0,68689.0,0.25154015]
[1729804913663,0.18921185,68695.0,68689.0,0.25154015]
[1729804914098,0.00218404,68692.0,68689.0,0.30028857]
[1729804914328,0.18921185,68695.0,68689.0,0.19925223]
[1729804914533,0.04364085,68695.0,68689.0,0.15050381]
[1729804914745,0.04446685,68696.0,68692.0,0.0821]
[1729804914957,0.145571,68695.0,68692.0,0.0821]
[1729804915336,0.01365666,68693.0,68692.0,0.0821]
[1729804917299,0.01365666,68694.0,68692.0,0.0821]
[1729804917498,0.01365666,68693.0,68692.0,0.0821]
[1729804917875,0.19003014,68696.0,68692.0,0.0821]
[1729804918308,0.04363414,68695.0,68692.0,0.0821]
[1729804918716,0.05729078,68695.0,68692.0,0.0821]
[1729804920079,0.01365664,68695.0,68692.0,0.0821]
[1729804920733,0.000826,68696.0,68692.0,0.0821]
[1729804921163,0.01365625,68694.0,68692.0,0.0821]
[1729804921592,0.000826,68696.0,68692.0,0.0821]
[1729804924959,0.03633225,68695.0,68692.0,0.0821]
[1729804925363,0.022676,68695.0,68692.0,0.0821]
[1729804925561,0.000826,68695.0,68692.0,0.0821]
[1729804930196,0.000826,68695.0,68693.0,0.25154015]
[1729804931508,0.000826,68695.0,68694.0,0.61466669]
[1729804931712,0.000826,68695.0,68694.0,0.66413416]
[1729804932221,0.000826,68695.0,68694.0,0.7651705]
[1729804932455,0.00519342,68700.0,68694.0,0.7651705]
[1729804932456,0.04362464,68716.0,68708.0,0.2691]
[1729804932664,0.000166,68717.0,68711.0,0.10103634]
[1729804932880,0.000166,68717.0,68711.0,0.19676286]
[1729804933336,0.14569237,68721.0,68714.0,0.291061]
[1729804933337,0.04376461,68721.0,68714.0,0.291061]
[1729804933549,0.04376461,68721.0,68713.0,0.005]
[1729804933550,0.00017637,68721.0,68720.0,0.51565434]
[1729804933757,0.00017637,68721.0,68720.0,0.66615815]
[1729804933969,0.00017637,68721.0,68720.0,0.79098357]
[1729804934180,0.00017637,68721.0,68720.0,0.78598357]
[1729804934416,0.000825,68725.0,68724.0,0.35258168]
[1729804934639,0.000825,68725.0,68724.0,0.58518549]
[1729804935515,0.000825,68729.0,68728.0,0.419601]
[1729804935729,0.000825,68729.0,68728.0,0.63596632]
[1729804935936,0.000825,68729.0,68728.0,0.73700266]
[1729804936371,0.000825,68729.0,68728.0,0.78962808]
[1729804937402,0.000825,68729.0,68728.0,0.63596632]
[1729804937722,0.000825,68729.0,68728.0,0.78962808]
[1729804940312,0.00017632,68743.0,68739.0,0.56823876]
[1729804940525,0.00017632,68743.0,68739.0,0.71874257]
[1729804942173,0.00017632,68743.0,68739.0,0.72374257]
[1729804942380,0.00017632,68743.0,68739.0,0.81946909]
[1729804942805,0.00017632,68743.0,68739.0,9.82768402]
[1729804943233,0.00017632,68743.0,68739.0,9.81946909]
[1729804944510,0.1,68762.0,68739.0,9.81946909]
[1729804944511,0.000824,68770.0,68757.0,0.005]
[1729804944773,0.000824,68770.0,68757.0,0.57544716]
[1729804944988,0.000824,68770.0,68757.0,0.65352999]
[1729804945922,0.000824,68770.0,68757.0,0.84512999]
[1729804946346,0.000824,68770.0,68762.0,0.148429]
[1729804946587,0.000824,68770.0,68762.0,0.52869457]
[1729804947621,0.00300513,68770.0,68762.0,0.52569457]
[1729804947821,0.000824,68770.0,68762.0,0.59155608]
[1729804948051,0.000824,68770.0,68762.0,0.81474441]
[1729804948478,0.000824,68770.0,68762.0,0.59455608]
[1729804948900,0.000824,68770.0,68762.0,0.81474441]
[1729804949128,0.000824,68770.0,68762.0,0.59455608]
[1729804949565,0.000824,68770.0,68762.0,0.81474441]
[1729804949786,0.000824,68770.0,68769.0,0.413114]
[1729804950049,0.000824,68770.0,68769.0,0.74006505]
[1729804950451,0.000824,68770.0,68769.0,0.74306505]
[1729804952205,0.000824,68770.0,68769.0,0.58940329]
[1729804952443,0.000824,68770.0,68769.0,0.74306505]
[1729804953287,0.00064297,68771.0,68770.0,0.148412]
[1729804953514,0.00064297,68771.0,68770.0,0.76849242]
[1729804953722,0.00064297,68771.0,68770.0,0.61483066]
[1729804954133,0.00064297,68771.0,68770.0,0.54830409]
[1729804954377,0.00064297,68771.0,68770.0,0.46774233]
[1729804954578,0.002,68779.0,68771.0,0.72705]
[1729804954792,0.0003069,68780.0,68779.0,0.15366176]
[1729804955029,0.0003069,68780.0,68779.0,0.44955857]
[1729804958028,0.0003069,68780.0,68779.0,0.30416557]
[1729804958242,0.0003069,68780.0,68779.0,0.44955857]
[1729804958447,0.0003069,68780.0,68779.0,0.57469256]
[1729804958652,0.0003069,68780.0,68779.0,0.44955857]
[1729804960433,0.0011319,68780.0,68779.0,0.44955857]
[1729804962606,0.0011319,68780.0,68779.0,0.7479469]
[1729804962850,0.0011319,68780.0,68779.0,0.9318469]
[1729804963310,0.01,68781.0,68780.0,0.145391]
[1729804963526,0.01,68781.0,68780.0,0.44639862]
[1729804964640,0.003,68789.0,68787.0,0.14508533]
[1729804964852,0.003,68789.0,68780.0,0.30100762]
[1729804964853,0.001,68789.0,68788.0,0.44953957]
[1729804966656,0.001,68789.0,68788.0,0.52773957]
[1729804966870,0.001,68789.0,68788.0,0.56160927]
[1729804967294,0.001,68789.0,68788.0,0.74550927]
[1729804967513,0.001,68789.0,68788.0,0.74850927]
[1729804967731,0.001,68789.0,68788.0,0.74550927]
[1729804968181,0.001,68789.0,68788.0,0.90217103]
[1729804968612,0.00082497,68789.0,68788.0,0.91217103]
[1729804968837,0.00082497,68789.0,68788.0,0.75850927]
[1729804969059,0.00082497,68789.0,68788.0,0.75350927]
[1729804969278,0.00082497,68789.0,68788.0,0.75850927]
[1729804970407,0.00082497,68789.0,68788.0,0.75550927]
[1729804970680,0.00082497,68789.0,68788.0,0.75220927]
[1729804970892,0.00082497,68789.0,68788.0,0.90587103]
[1729804971105,0.00082497,68789.0,68788.0,0.74220927]
[1729804971322,0.00082497,68789.0,68788.0,0.75220927]
[1729804971756,0.31036302,68800.0,68799.0,0.29901176]
[1729804971961,0.31036302,68800.0,68799.0,0.47941675]
[1729804972382,0.31036302,68800.0,68799.0,0.32575499]
[1729804972601,0.31036302,68800.0,68799.0,0.47941675]
[1729804972820,0.31036302,68800.0,68799.0,0.77870508]
[1729804973246,0.31036302,68800.0,68799.0,0.55851675]
[1729804974104,0.31036302,68800.0,68799.0,0.40485499]
[1729804974365,0.01966323,68800.0,68799.0,0.79444214]
[1729804974628,0.01243199,68817.0,68816.0,0.145315]
[1729804974852,0.01243199,68817.0,68816.0,0.37491881]
[1729804975306,0.01243199,68817.0,68816.0,0.59510714]
[1729804975511,0.01243199,68817.0,68816.0,0.37491881]
[1729804975701,0.002,68830.0,68819.0,0.29896976]
[1729804975958,5.176e-05,68841.0,68819.0,0.29896976]
[1729804975959,0.002,68833.0,68819.0,0.45237932]
[1729804976189,0.002,68833.0,68819.0,0.44947357]
[1729804976404,5.176e-05,68841.0,68819.0,0.37791181]
[1729804976405,0.002,68837.0,68819.0,0.37791181]
[1729804977977,0.00217897,68838.0,68819.0,0.37791181]
[1729804978474,0.00217897,68838.0,68819.0,0.38291181]
[1729804979823,0.002,68833.0,68819.0,0.37491181]
[1729804980291,0.44416876,68845.0,68819.0,0.37491181]
[1729804980292,0.002,68830.0,68819.0,0.37491181]
[1729804980715,0.01,68844.0,68819.0,0.37491181]
[1729804980716,0.002,68833.0,68819.0,0.37491181]
[1729804980921,0.00217925,68830.0,68819.0,0.37491181]
[1729804981098,0.002,68833.0,68819.0,0.37491181]
[1729804981530,0.005,68844.0,68819.0,0.22960381]
[1729804981750,0.005,68844.0,68823.0,0.30416557]
[1729804981751,0.00717926,68844.0,68823.0,0.30416557]
[1729804982236,0.00217926,68844.0,68833.0,0.290558]
[1729804982444,0.00717926,68844.0,68837.0,0.145269]
[1729804982649,0.00717926,68844.0,68839.0,0.145265]
[1729804982650,0.00217926,68844.0,68839.0,0.145265]
[1729804982859,0.00217926,68844.0,68840.0,0.29576681]
[1729804983081,0.145253,68846.0,68841.0,0.15050381]
[1729804983351,0.34422887,68847.0,68841.0,0.15050381]
[1729804983575,0.34423087,68847.0,68841.0,0.15050381]
[1729804983794,0.19897987,68847.0,68841.0,0.15050381]
[1729804984016,0.145251,68846.0,68842.0,0.22018833]
[1729804984217,0.15366176,68843.0,68842.0,0.22018833]
[1729804984436,0.15584075,68843.0,68842.0,0.22018833]
[1729804984638,0.15366176,68843.0,68842.0,0.22018833]
[1729804984878,0.15366176,68843.0,68841.0,0.15050381]
[1729804985310,0.000827,68844.0,68843.0,0.145258]
[1729804985525,0.000827,68844.0,68843.0,0.29576181]
[1729804986148,0.000827,68844.0,68843.0,0.51595014]
[1729804986357,0.000827,68844.0,68843.0,0.29576181]
[1729804987832,0.000827,68844.0,68836.0,0.290541]
[1729804988048,0.15448876,68844.0,68837.0,0.37069214]
[1729804988278,0.15448876,68844.0,68838.0,0.145268]
[1729804988500,0.15448876,68844.0,68837.0,0.29577381]
[1729804988925,0.15448876,68844.0,68838.0,0.22018833]
[1729804989357,0.15448876,68844.0,68839.0,0.00454228]
[1729804990463,0.145268,68838.0,68828.0,0.145289]
[1729804990669,0.145268,68839.0,68834.0,0.22018833]
[1729804990909,0.005,68841.0,68834.0,0.22018833]
[1729804990910,0.15366176,68835.0,68834.0,0.22018833]
[1729804991129,0.15366176,68835.0,68824.0,0.0001001]
[1729804991130,0.005,68833.0,68824.0,0.0001001]
[1729804991405,0.005,68833.0,68796.0,0.005]
[1729804991406,0.005,68802.0,68793.0,0.290727]
[1729804991622,0.002,68813.0,68784.0,0.22018833]
[1729804991623,0.15866176,68794.0,68784.0,0.22018833]
[1729804991857,0.005,68807.0,68785.0,0.00290738]
[1729804991858,0.00650294,68793.0,68785.0,0.00290738]
[1729804992087,0.00650294,68793.0,68792.0,0.145365]
[1729804992310,0.00650294,68793.0,68788.0,0.01849914]
[1729804992548,0.00650294,68793.0,68792.0,0.145365]
[1729804992774,0.02231004,68793.0,68792.0,0.15050381]
[1729804993007,0.02012958,68793.0,68792.0,0.29586881]
[1729804993223,0.02012958,68793.0,68787.0,0.22184233]
[1729804993224,0.02012958,68793.0,68787.0,0.001654]
[1729804993457,0.005,68792.0,68787.0,0.001654]
[1729804993662,0.15366176,68788.0,68787.0,0.001654]
[1729804993887,0.145374,68788.0,68787.0,0.001654]
[1729804994091,0.29903576,68788.0,68787.0,0.001654]
[1729804995009,0.40403576,68788.0,68787.0,0.001654]
[1729804995634,0.43703576,68788.0,68787.0,0.001654]
[1729804996285,0.51861682,68788.0,68787.0,0.001654]
[1729804996508,0.51861682,68788.0,68768.0,0.22018833]
[1729804996509,0.29907576,68769.0,68768.0,0.22018833]
[1729804996949,0.145422,68765.0,68764.0,0.00165]
[1729804997161,0.15366176,68768.0,68764.0,0.15215381]
[1729804997454,0.15366176,68768.0,68764.0,0.00165]
[1729804997455,0.22018833,68766.0,68764.0,0.00165]
[1729804997651,0.145422,68765.0,68764.0,0.00165]
[1729804997891,0.18060355,68765.0,68764.0,0.00165]
[1729804998531,0.18560355,68765.0,68764.0,0.00165]
[1729804998985,0.28560355,68765.0,68764.0,0.00165]
[1729804999211,0.43810736,68765.0,68764.0,0.00165]
[1729804999436,0.51750736,68765.0,68764.0,0.00165]
[1729804999885,0.51750736,68765.0,68749.0,0.22018833]
[1729804999886,0.173456,68749.0,68748.0,0.01363601]
[1729805000120,0.150473,68741.0,68740.0,0.22018833]
[1729805000359,0.150473,68741.0,68739.0,9.0]
[1729805000360,0.173475,68740.0,68739.0,9.0]
[1729805000570,0.39366333,68740.0,68739.0,9.0]
[1729805000786,0.178475,68740.0,68739.0,9.0]
[1729805000997,0.65616714,68740.0,68739.0,9.0]
[1729805001236,0.608203,68740.0,68739.0,9.0]
[1729805001452,0.283475,68740.0,68739.0,9.0]
[1729805001678,0.273475,68740.0,68739.0,9.0]
[1729805002136,0.128,68740.0,68739.0,9.0]
[1729805002349,0.1,68740.0,68739.0,9.0]
[1729805002597,0.023,68741.0,68739.0,9.0]
[1729805002799,0.00218197,68743.0,68739.0,9.0]
[1729805003025,0.00218197,68743.0,68740.0,0.15050381]
[1729805003263,0.00218197,68743.0,68742.0,0.145471]
[1729805003463,0.22518833,68758.0,68742.0,0.15050381]
[1729805003670,0.22018833,68747.0,68743.0,0.15050381]
[1729805003892,0.22518833,68758.0,68743.0,0.15050381]
[1729805004112,0.22018833,68758.0,68743.0,0.15050381]
[1729805004353,0.22018833,68758.0,68747.0,0.145459]
[1729805004556,0.22018833,68758.0,68748.0,0.15050381]
[1729805004766,0.22018833,68764.0,68748.0,0.15050381]
[1729805004975,0.22018833,68757.0,68749.0,0.290911]
[1729805005232,0.22018833,68764.0,68750.0,0.15050381]
[1729805005493,0.00218155,68765.0,68759.0,0.145435]
[1729805005672,0.22018833,68777.0,68768.0,0.145416]
[1729805005673,0.22018833,68769.0,68768.0,0.145416]
[1729805005896,0.22018833,68777.0,68769.0,0.0145416]
[1729805006098,0.22018833,68777.0,68757.0,0.0848]
[1729805006099,0.22018833,68777.0,68770.0,0.15050381]
[1729805006525,0.22018833,68777.0,68770.0,0.29591381]
[1729805006737,0.005,68788.0,68773.0,0.290811]
[1729805006958,0.005,68788.0,68767.0,0.22018833]
[1729805006959,0.22018833,68791.0,68774.0,0.37069214]
[1729805007178,0.22018833,68784.0,68775.0,0.00290765]
[1729805007397,0.22018833,68791.0,68776.0,0.15050381]
[1729805007617,0.22018833,68791.0,68777.0,0.290794]
[1729805007853,0.22018833,68791.0,68779.0,0.290786]
[1729805008074,0.22018833,68791.0,68780.0,0.15050381]
[1729805008277,0.00650294,68793.0,68783.0,0.145384]
[1729805008278,0.22018833,68790.0,68783.0,0.145384]
[1729805008493,0.22018833,68790.0,68784.0,0.15050381]
[1729805008707,0.00650294,68793.0,68784.0,0.15050381]
[1729805008939,0.00650294,68793.0,68785.0,0.145379]
[1729805009189,0.00650294,68793.0,68786.0,0.15050381]
[1729805010712,0.00650294,68793.0,68770.0,0.0798]
[1729805010713,0.005,68790.0,68770.0,0.0798]
[1729805010935,0.005,68790.0,68783.0,0.22018833]
[1729805010936,0.005,68787.0,68783.0,0.22018833]
[1729805011140,0.023,68788.0,68775.0,0.15050381]
[1729805011360,0.168373,68789.0,68775.0,0.15050381]
[1729805011577,0.123,68787.0,68775.0,0.15050381]
[1729805012270,0.128,68787.0,68775.0,0.15050381]
[1729805012494,0.123,68787.0,68775.0,0.15050381]
[1729805012709,0.023,68792.0,68778.0,0.145394]
[1729805012926,0.023,68788.0,68779.0,0.15050381]
[1729805013208,0.00650294,68793.0,68787.0,0.22018833]
[1729805013426,0.00650294,68793.0,68775.0,0.22018833]
[1729805013427,0.00650294,68793.0,68788.0,0.15050381]
[1729805014394,0.023,68792.0,68788.0,0.15050381]
[1729805016346,0.05845901,68792.0,68788.0,0.15050381]
[1729805017008,0.03545901,68792.0,68791.0,0.22018833]
[1729805017249,0.03545901,68792.0,68791.0,0.52615946]
[1729805017489,0.03545901,68792.0,68791.0,0.53115946]
[1729805017910,0.00650294,68793.0,68792.0,0.145365]
[1729805018123,0.00650294,68793.0,68792.0,0.29877551]
[1729805019450,0.02950294,68793.0,68792.0,0.51896384]
[1729805019672,0.02950294,68793.0,68792.0,0.29586881]
[1729805019879,0.02950294,68793.0,68792.0,0.2987756]
[1729805020089,0.02950294,68793.0,68792.0,0.3037756]
[1729805020292,0.02950294,68793.0,68792.0,0.3087756]
[1729805020514,0.02950294,68793.0,68792.0,0.3137756]
[1729805020725,0.22018833,68809.0,68796.0,0.005]
[1729805020954,0.22018833,68809.0,68803.0,0.290684]
[1729805021204,0.22018833,68816.0,68805.0,0.145338]
[1729805021417,0.00218034,68813.0,68806.0,0.15050381]
[1729805022061,0.023,68812.0,68806.0,0.15050381]
[1729805023622,0.290557,68834.0,68811.0,0.23028865]
[1729805023860,0.22018833,68828.0,68812.0,0.0029061]
[1729805024081,0.22018833,68835.0,68812.0,0.0029061]
[1729805024312,0.00217939,68832.0,68813.0,0.290642]
[1729805024541,0.00217939,68832.0,68820.0,0.145306]
[1729805024763,0.00217939,68832.0,68817.0,0.14531]
[1729805025005,0.00217939,68832.0,68820.0,0.15050381]
[1729805026110,0.023,68831.0,68821.0,0.290607]
[1729805026312,0.023,68831.0,68823.0,0.145298]
[1729805026539,0.023,68831.0,68824.0,0.15050381]
[1729805027673,0.105,68841.0,68822.0,0.1453]
[1729805027674,0.000826,68846.0,68831.0,0.0787]
[1729805027895,0.22101433,68846.0,68833.0,0.38079246]
[1729805028112,0.000826,68846.0,68834.0,0.145276]
[1729805028315,0.000826,68846.0,68831.0,0.369265]
[1729805028316,0.000826,68846.0,68835.0,0.15050381]
[1729805029082,0.023,68843.0,68835.0,0.15050381]
[1729805029298,0.0338163,68839.0,68835.0,0.15050381]
[1729805029519,0.023,68839.0,68835.0,0.15050381]
[1729805029739,0.023,68839.0,68838.0,0.23028865]
[1729805029943,0.000826,68846.0,68838.0,0.38079246]
[1729805029944,0.023,68843.0,68838.0,0.38079246]
[1729805030174,0.023,68843.0,68839.0,0.15050381]
[1729805030832,0.02517899,68840.0,68839.0,0.15050381]
[1729805032072,0.023,68843.0,68839.0,0.15050381]
[1729805032728,0.02517904,68840.0,68839.0,0.15050381]
[1729805032934,0.023,68840.0,68839.0,0.15050381]
[1729805033160,0.023,68843.0,68839.0,0.15050381]
[1729805033366,0.023,68843.0,68839.0,0.38079246]
[1729805033570,0.023,68843.0,68839.0,0.15050381]
[1729805034671,0.02517905,68840.0,68839.0,0.15050381]
[1729805035132,0.023,68843.0,68839.0,0.15050381]
[1729805035548,0.023,68843.0,68840.0,0.145264]
[1729805035769,0.023,68843.0,68839.0,0.15050381]
[1729805035770,0.023,68843.0,68841.0,0.15050381]
[1729805036667,0.023,68843.0,68841.0,0.14997465]
[1729805036884,0.001327,68844.0,68841.0,0.14497465]
[1729805036885,0.023,68842.0,68841.0,0.14497465]
[1729805037310,0.023,68843.0,68841.0,0.14497465]
[1729805038388,0.02517886,68842.0,68841.0,0.14497465]
[1729805039237,0.02517886,68842.0,68841.0,0.13997465]
[1729805041108,0.023,68843.0,68841.0,0.13997465]
[1729805042143,0.00217886,68842.0,68841.0,0.13997465]
[1729805042343,0.02517886,68842.0,68841.0,0.13997465]
[1729805042813,0.02517886,68842.0,68829.0,0.22067]
[1729805043042,0.023,68841.0,68832.0,0.37069214]
[1729805043236,0.168285,68830.0,68829.0,0.02917]
[1729805043652,0.168285,68830.0,68817.0,0.22018833]
[1729805043653,0.023,68823.0,68817.0,0.22018833]
[1729805043900,0.023,68821.0,68818.0,0.02917]
[1729805044091,0.168301,68823.0,68820.0,0.02917]
[1729805044264,0.023,68821.0,68820.0,0.02917]
[1729805044486,0.313603,68823.0,68820.0,0.02917]
[1729805044487,0.023,68823.0,68820.0,0.02917]
[1729805044659,0.168301,68823.0,68820.0,0.02917]
[1729805045040,0.168301,68823.0,68810.0,0.36551533]
[1729805045041,0.00217966,68821.0,68807.0,0.22018833]
[1729805045240,0.023,68816.0,68814.0,0.22018833]
[1729805045451,0.168317,68815.0,68814.0,0.22018833]
[1729805045647,0.290638,68814.0,68808.0,0.15050381]
[1729805045877,0.023,68810.0,68809.0,0.22018833]
[1729805046078,0.168327,68810.0,68809.0,0.37069214]
[1729805046295,0.023,68811.0,68809.0,0.15050381]
[1729805046556,0.01,68773.0,68772.0,1.2452]
[1729805046727,0.173405,68773.0,68772.0,1.2452]
[1729805046931,0.023,68773.0,68772.0,1.2452]
[1729805047162,0.023,68777.0,68772.0,1.2452]
[1729805047367,0.023,68777.0,68772.0,1.39842677]
[1729805047575,0.023,68781.0,68772.0,1.39842677]
[1729805047824,0.023,68786.0,68777.0,0.15322677]
[1729805048025,0.290738,68791.0,68781.0,0.15322677]
[1729805048026,0.023,68790.0,68781.0,0.15322677]
[1729805048228,0.023,68787.0,68780.0,0.23019603]
[1729805048836,0.023,68786.0,68780.0,0.23019603]
[1729805049050,0.023,68787.0,68780.0,0.23019603]
[1729805049265,0.023,68784.0,68780.0,0.23019603]
[1729805049466,0.023,68784.0,68781.0,0.22018833]
[1729805049684,0.145382,68784.0,68780.0,0.23019603]
[1729805049909,0.023,68783.0,68780.0,0.23019603]
[1729805050129,0.023,68783.0,68781.0,0.15050381]
[1729805050357,0.168375,68788.0,68781.0,0.15050381]
[1729805051184,0.023,68785.0,68781.0,0.15050381]
[1729805051853,0.023,68786.0,68781.0,0.15050381]
[1729805052088,0.023,68787.0,68781.0,0.15050381]
[1729805052516,0.145381,68785.0,68781.0,0.15050381]
[1729805052733,0.023,68784.0,68781.0,0.15050381]
[1729805053768,0.023,68783.0,68781.0,0.15050381]
[1729805054000,0.145386,68782.0,68781.0,0.15050381]
[1729805054208,0.023,68782.0,68781.0,0.15050381]
[1729805054850,0.023,68784.0,68781.0,0.15050381]
[1729805055061,0.023,68788.0,68781.0,0.15050381]
[1729805055289,0.023,68784.0,68781.0,0.15050381]
[1729805055740,0.023,68786.0,68781.0,0.15050381]
[1729805055960,0.023,68784.0,68781.0,0.15050381]
[1729805056607,0.145385,68783.0,68781.0,0.15050381]
[1729805056838,0.023,68782.0,68781.0,0.15050381]
[1729805057049,0.023,68780.0,68774.0,0.22018833]
[1729805057272,0.00218093,68779.0,68775.0,0.15050381]
[1729805057495,0.023,68778.0,68775.0,0.15050381]
[1729805058791,0.168389,68781.0,68775.0,0.15050381]
[1729805059720,0.023,68777.0,68775.0,0.15050381]
[1729805060149,0.023,68777.0,68775.0,0.14861181]
[1729805060583,0.023,68780.0,68775.0,0.14861181]
[1729805061051,0.023,68778.0,68775.0,0.14861181]
[1729805061270,0.168391,68780.0,68775.0,0.14861181]
[1729805061922,0.023,68778.0,68775.0,0.14861181]